bitfinex/quotes_ETHUSD_20250904
["timestamp","ask_amount","ask_price","bid_price","bid_amount"]
[1756989501982,26.46461451,4403.9,4403.8,0.029]
[1756989502177,5.62382,4403.9,4403.8,0.029]
[1756989502378,9.68882,4403.9,4403.8,0.029]
[1756989502794,9.68882,4403.9,4403.8,0.3235]
[1756989503090,1.7866,4403.9,4403.8,0.7929]
[1756989503290,4.1776,4403.9,4403.8,3.06366615]
[1756989503714,3.0,4404.6,4403.9,2.27071298]
[1756989503914,0.1136,4404.0,4403.9,2.27071459]
[1756989504100,0.1136,4404.0,4403.9,3.56241459]
[1756989504488,4.062,4404.5,4404.3,2.27046838]
[1756989504811,0.0504,4404.7,4404.4,1.2917]
[1756989505010,0.1136,4404.6,4404.5,3.26756505]
[1756989505314,0.1136,4404.6,4404.5,3.56206505]
[1756989505904,0.1136,4404.6,4404.5,3.03426505]
[1756989506094,0.1136,4404.6,4404.5,3.56206505]
[1756989506614,0.1136,4404.6,4404.1,2.38420239]
[1756989506815,0.0504,4404.7,4404.6,2.27035372]
[1756989507112,0.0504,4404.7,4404.1,0.1136]
[1756989507333,0.0504,4404.7,4403.9,0.1136]
[1756989507625,0.0504,4404.7,4404.6,2.56485372]
[1756989507986,0.0504,4404.7,4404.6,0.2945]
[1756989508432,0.0504,4404.7,4404.1,0.4694]
[1756989508916,0.0504,4404.7,4404.6,2.56485372]
[1756989510014,0.0504,4404.7,4404.6,3.03425372]
[1756989510305,0.0514,4404.7,4404.6,3.58145372]
[1756989512382,0.0514,4404.7,4404.6,5.51170828]
[1756989512588,0.0514,4404.7,4404.6,5.48900475]
[1756989515025,0.0514,4404.7,4404.6,9.53000475]
[1756989515224,0.0514,4404.7,4404.6,0.4081]
[1756989515395,0.0514,4404.7,4404.6,6.72545372]
[1756989515595,0.0514,4404.7,4404.6,0.4081]
[1756989515791,0.0514,4404.7,4404.6,6.43095372]
[1756989515987,0.3498,4404.7,4404.6,4.046]
[1756989516192,0.1642,4404.7,4404.6,4.046]
[1756989516392,0.1642,4404.7,4404.6,6.31635372]
[1756989516623,0.1642,4404.7,4404.6,2.27035372]
[1756989516939,0.1642,4404.7,4404.5,3.94339854]
[1756989517103,0.2984,4404.6,4404.3,0.004]
[1756989517596,0.1642,4404.7,4404.5,2.27036174]
[1756989517800,0.1642,4404.7,4404.3,0.004]
[1756989518592,1.38444276,4404.7,4404.3,0.004]
[1756989518795,0.2984,4404.4,4404.3,0.004]
[1756989519001,0.2984,4404.4,4404.3,2.27450836]
[1756989519218,0.2984,4404.4,4404.3,0.004]
[1756989519419,0.2984,4404.4,4404.3,2.27450836]
[1756989519904,0.46668428,4404.4,4404.3,0.004]
[1756989520104,3.65925681,4404.4,4404.3,0.004]
[1756989521725,4.3888,4404.4,4404.3,0.004]
[1756989522244,6.65925681,4404.4,4404.3,0.004]
[1756989522935,4.1486,4404.4,4404.3,0.004]
[1756989523699,4.447,4404.4,4404.3,0.004]
[1756989523936,5.14814529,4404.4,4404.3,0.004]
[1756989524298,11.3954021,4404.4,4404.3,0.004]
[1756989525103,11.2818021,4404.4,4404.3,0.004]
[1756989525303,11.40009919,4404.4,4404.3,0.004]
[1756989526826,13.3352303,4403.9,4403.8,0.029]
[1756989527021,23.60081768,4403.9,4403.8,0.029]
[1756989527234,24.87601768,4403.9,4403.8,0.029]
[1756989527416,25.66801768,4403.9,4403.8,0.029]
[1756989529227,14.06451571,4402.9,4402.8,0.025]
[1756989529430,23.4471976,4402.9,4402.8,0.025]
[1756989529735,24.7223976,4402.9,4402.8,0.025]
[1756989529935,25.5143976,4402.9,4402.8,0.025]
[1756989531657,20.6903976,4402.9,4402.8,0.025]
[1756989531837,8.706,4402.9,4402.8,0.025]
[1756989532005,4.673,4402.9,4402.8,0.025]
[1756989532204,8.706,4402.9,4402.8,0.025]
[1756989533040,6.94423032,4402.9,4402.8,0.025]
[1756989533222,8.706,4402.9,4402.8,0.025]
[1756989533421,11.84783032,4402.9,4402.8,0.025]
[1756989533737,13.12303032,4402.9,4402.8,0.025]
[1756989535211,13.23663032,4402.9,4402.8,0.025]
[1756989536152,14.02863032,4402.9,4402.8,0.025]
[1756989536809,9.20363032,4402.9,4402.8,0.025]
[1756989537014,13.23663032,4402.9,4402.8,0.025]
[1756989537433,14.02863032,4402.9,4402.8,0.025]
[1756989537838,13.91503032,4402.9,4402.8,0.025]
[1756989538634,3.0,4402.8,4400.4,0.5472]
[1756989538840,16.336262,4401.9,4400.4,1.007]
[1756989539034,16.336262,4401.9,4399.6,1.673]
[1756989539035,22.340662,4401.9,4400.2,2.27260951]
[1756989539330,22.340662,4401.9,4400.9,0.4598]
[1756989539331,11.27614629,4401.9,4400.9,0.4598]
[1756989539855,11.27614629,4401.9,4400.5,0.5472]
[1756989539856,12.25294629,4401.9,4400.5,1.007]
[1756989540059,12.48539158,4401.9,4400.8,0.4848]
[1756989540241,11.97729158,4401.9,4400.8,0.4848]
[1756989540643,12.93709158,4401.9,4400.8,0.4848]
[1756989541039,13.72909158,4401.9,4400.8,0.025]
[1756989541861,13.27529158,4401.9,4400.8,0.4919]
[1756989542161,13.72829158,4401.9,4400.8,0.4919]
[1756989542753,11.97649158,4401.9,4400.8,0.4919]
[1756989543064,12.93629158,4401.9,4400.8,0.025]
[1756989543764,3.06415923,4401.1,4399.8,0.025]
[1756989543964,17.12929463,4399.9,4399.8,0.025]
[1756989544132,3.0,4399.8,4398.2,0.9613]
[1756989544332,0.3064,4398.9,4397.8,0.4669]
[1756989544553,12.15829559,4398.9,4397.7,0.4944]
[1756989544740,12.66509559,4398.9,4397.7,0.4944]
[1756989544940,13.91009559,4398.9,4397.7,0.4669]
[1756989545141,13.91009559,4398.9,4397.2,0.4944]
[1756989545529,13.91009559,4398.9,4397.4,0.4669]
[1756989545730,0.792,4398.4,4397.4,0.4669]
[1756989545979,3.0,4398.1,4397.4,0.4669]
[1756989546161,5.708,4398.0,4397.4,0.4669]
[1756989546362,5.708,4398.0,4397.0,0.004]
[1756989546363,4.034,4397.9,4397.6,0.9613]
[1756989546590,0.4944,4398.2,4397.9,2.5632125]
[1756989546745,0.4944,4398.2,4398.1,2.2737091]
[1756989546935,4.034,4398.4,4398.0,0.9613]
[1756989547134,2.127,4399.4,4398.3,0.2934]
[1756989547365,3.0,4399.2,4398.3,0.2934]
[1756989547550,4.035,4399.1,4398.4,0.4669]
[1756989547967,0.68357761,4399.2,4398.4,0.4669]
[1756989548160,0.1136,4398.5,4398.4,2.74045401]
[1756989548362,0.1136,4398.5,4398.4,3.52425401]
[1756989548673,4.1486,4398.5,4398.4,3.52425401]
[1756989548853,4.1486,4398.5,4398.4,1.2507]
[1756989549051,4.1486,4398.5,4398.4,3.52425401]
[1756989549251,4.1486,4398.5,4398.4,1.2507]
[1756989549453,4.1486,4398.5,4398.4,3.52425401]
[1756989549969,4.1486,4398.5,4398.4,1.2507]
[1756989550265,4.1486,4398.5,4398.4,3.52425401]
[1756989550637,4.1486,4398.5,4398.4,1.2507]
[1756989550872,4.1486,4398.5,4398.4,3.52425401]
[1756989551463,0.1136,4398.5,4398.4,3.52425401]
[1756989551774,0.1136,4398.5,4398.4,0.2894]
[1756989552078,0.1136,4398.5,4398.4,0.7563]
[1756989552669,0.1136,4398.5,4398.4,0.2894]
[1756989552846,0.1136,4398.5,4398.4,0.7563]
[1756989553180,0.1136,4398.5,4398.4,3.52425401]
[1756989553873,0.1136,4398.5,4398.4,1.2507]
[1756989554076,0.1136,4398.5,4398.4,3.52425401]
[1756989554976,0.7594,4398.5,4398.3,0.004]
[1756989555181,3.03290829,4398.5,4398.3,0.004]
[1756989555485,3.14794484,4398.4,4398.3,0.004]
[1756989555948,3.45434484,4398.4,4398.3,0.004]
[1756989556144,1.675,4398.6,4398.3,0.2934]
[1756989556482,1.675,4398.6,4398.4,0.4669]
[1756989556775,2.27355401,4398.4,4398.3,0.004]
[1756989557163,2.57995401,4398.4,4398.3,0.004]
[1756989557867,3.08675401,4398.4,4398.3,0.004]
[1756989558072,6.53975401,4398.4,4398.3,0.004]
[1756989560682,3.0,4398.4,4398.3,0.004]
[1756989560995,7.036,4398.4,4398.3,0.2934]
[1756989561185,9.30955401,4398.4,4398.3,0.004]
[1756989561385,11.90154859,4398.4,4398.3,0.004]
[1756989561965,10.63534859,4398.4,4398.3,0.004]
[1756989562788,8.36179458,4398.4,4398.3,0.004]
[1756989562962,3.0,4398.4,4398.3,0.2934]
[1756989563162,7.036,4398.4,4398.3,0.2934]
[1756989563760,1.675,4398.6,4398.3,0.7603]
[1756989563960,4.036,4398.5,4398.4,0.4669]
[1756989564170,4.036,4398.5,4398.3,0.4984]
[1756989564590,1.675,4398.6,4398.4,0.2894]
[1756989564786,4.036,4398.5,4398.4,0.7563]
[1756989564987,4.1496,4398.5,4398.4,0.7563]
[1756989565588,0.1136,4398.5,4398.4,0.7563]
[1756989565791,4.1496,4398.5,4398.4,3.52425401]
[1756989566391,0.1136,4398.5,4398.4,3.52425401]
[1756989566575,0.1136,4398.5,4398.4,1.2507]
[1756989566775,0.1136,4398.5,4398.4,0.7563]
[1756989566974,0.1136,4398.5,4398.4,3.52425401]
[1756989567176,0.1128,4398.5,4398.4,4.10444265]
[1756989567368,0.1128,4398.5,4398.4,1.2507]
[1756989567575,0.1128,4398.5,4398.4,0.2894]
[1756989567868,0.1128,4398.5,4398.4,3.02985401]
[1756989568188,0.1128,4398.5,4398.4,3.52425401]
[1756989568390,0.001,4398.8,4398.7,2.27339895]
[1756989568874,0.001,4398.8,4398.7,3.02969895]
[1756989569070,0.001,4398.8,4398.7,3.52409895]
[1756989570295,0.001,4398.8,4398.7,4.05345587]
[1756989570592,0.001,4398.8,4398.7,7.86818985]
[1756989570793,0.001,4398.8,4398.7,7.84545587]
[1756989571857,0.001,4398.8,4398.7,11.88045587]
[1756989573195,0.001,4398.8,4398.7,7.84545587]
[1756989573408,0.001,4398.8,4398.7,11.88045587]
[1756989575311,0.001,4398.8,4398.7,7.84545587]
[1756989575812,0.001,4398.8,4398.7,6.54639895]
[1756989576327,0.001,4398.8,4398.7,2.51239895]
[1756989576480,0.001,4398.8,4398.7,6.54639895]
[1756989576677,0.001,4398.8,4398.7,2.51239895]
[1756989576979,0.001,4398.8,4398.7,2.22299895]
[1756989577202,0.001,4398.8,4398.7,6.25699895]
[1756989578416,0.001,4398.8,4398.7,2.22299895]
[1756989578593,1.2618,4398.8,4398.3,0.004]
[1756989578796,0.1136,4398.4,4398.3,0.004]
[1756989579412,1.3744,4398.4,4398.3,0.004]
[1756989579602,7.68095401,4398.4,4398.3,0.004]
[1756989581026,10.68095401,4398.4,4398.3,0.004]
[1756989582918,9.71095401,4398.4,4398.3,0.004]
[1756989583321,11.89201271,4398.4,4398.3,0.004]
[1756989584632,11.43391271,4398.4,4398.3,0.004]
[1756989584804,9.1603587,4398.4,4398.3,0.004]
[1756989585132,4.1466,4398.4,4398.3,0.004]
[1756989585428,5.4074,4398.4,4398.3,0.004]
[1756989585800,4.1466,4398.4,4398.3,0.004]
[1756989586400,4.4374,4398.4,4398.3,0.004]
[1756989587632,6.71095401,4398.4,4398.3,0.004]
[1756989587930,5.38164616,4398.4,4398.3,0.004]
[1756989588705,7.65520017,4398.4,4398.3,0.004]
[1756989588920,8.62520017,4398.4,4398.3,0.004]
[1756989589104,11.62520017,4398.4,4398.3,0.004]
[1756989590833,10.54160017,4398.4,4398.3,0.004]
[1756989591040,10.65520017,4398.4,4398.3,0.004]
[1756989592520,8.08904616,4398.4,4398.3,0.3063]
[1756989592714,7.1456,4398.4,4398.3,0.3063]
[1756989592909,7.1456,4398.4,4398.3,0.004]
[1756989592910,6.41915401,4398.4,4398.3,0.004]
[1756989593111,6.70995401,4398.4,4398.3,0.004]
[1756989593312,4.6575,4398.4,4398.3,0.004]
[1756989593563,4.1456,4398.4,4398.3,0.3063]
[1756989593736,4.1456,4398.4,4398.3,0.004]
[1756989594534,0.1136,4398.4,4398.3,0.3063]
[1756989594855,4.1456,4398.4,4398.3,3.02500571]
[1756989595005,0.1136,4398.4,4398.3,3.51080571]
[1756989595202,4.1456,4398.4,4398.3,3.51080571]
[1756989595638,0.1136,4398.4,4398.3,3.51080571]
[1756989597348,0.001,4398.8,4398.7,2.27339895]
[1756989597824,0.001,4398.8,4398.7,0.3023]
[1756989598022,0.001,4398.8,4398.7,3.02079895]
[1756989598224,0.001,4398.8,4398.3,0.004]
[1756989598426,0.1136,4398.5,4398.3,0.004]
[1756989598955,0.1136,4398.5,4398.4,2.57585401]
[1756989599126,0.1136,4398.5,4398.4,0.3023]
[1756989599447,0.1136,4398.5,4398.4,2.57585401]
[1756989599743,0.1136,4398.5,4398.4,0.3023]
[1756989600524,0.1136,4398.5,4398.3,0.004]
[1756989600726,0.7765,4398.4,4398.3,0.004]
[1756989600944,0.3026,4398.4,4398.3,0.004]
[1756989601249,0.1136,4398.4,4398.3,0.3034]
[1756989601427,0.1136,4398.4,4398.3,0.004]
[1756989601630,0.1136,4398.4,4398.3,0.7614]
[1756989601829,0.1136,4398.4,4398.3,0.3034]
[1756989602230,4.4462,4398.4,4398.3,0.004]
[1756989602431,8.13897401,4398.4,4398.3,0.004]
[1756989603153,7.66507401,4398.4,4398.3,0.004]
[1756989603517,8.13897401,4398.4,4398.3,0.004]
[1756989604255,3.0657608,4398.0,4397.9,0.004]
[1756989604431,26.72286157,4398.0,4397.9,0.004]
[1756989604635,27.22356157,4398.0,4397.9,0.004]
[1756989604934,28.00006157,4398.0,4397.9,0.004]
[1756989605123,28.16890308,4398.0,4397.9,0.004]
[1756989605324,23.17806157,4398.0,4397.9,0.004]
[1756989605534,2.2738642,4397.8,4397.4,0.004]
[1756989605734,5.27396761,4397.6,4397.4,0.004]
[1756989605942,5.57656761,4397.6,4397.4,0.004]
[1756989606256,6.55116761,4397.6,4397.4,0.004]
[1756989608580,5.27401932,4397.5,4397.4,0.004]
[1756989608764,2.27432964,4396.9,4396.8,0.025]
[1756989608929,25.62645433,4396.9,4396.8,0.025]
[1756989609124,26.71381078,4396.9,4396.8,0.025]
[1756989609326,22.68481078,4396.9,4396.8,0.025]
[1756989609540,11.28092964,4396.9,4396.8,0.025]
[1756989609760,11.72554964,4396.9,4396.8,0.025]
[1756989609954,12.70014964,4396.9,4396.8,0.025]
[1756989610962,5.11962,4396.9,4396.8,0.025]
[1756989611273,5.704,4396.9,4396.8,0.7824]
[1756989611431,5.704,4396.9,4396.8,0.3244]
[1756989611743,5.704,4396.9,4396.8,0.7824]
[1756989612065,5.704,4396.9,4396.8,3.54708136]
[1756989612066,1.675,4396.9,4396.8,3.54708136]
[1756989612402,1.676,4397.7,4396.9,2.27432964]
[1756989612598,1.676,4397.7,4397.6,0.2994]
[1756989612801,5.705,4397.7,4397.6,0.7574]
[1756989613013,5.705,4397.7,4397.6,1.2477]
[1756989613173,4.029,4398.0,4397.6,1.2477]
[1756989613359,4.029,4398.0,4397.6,0.2994]
[1756989613576,4.029,4398.0,4397.7,0.9483]
[1756989613759,4.029,4398.0,4397.9,0.2994]
[1756989614085,4.029,4398.0,4397.9,1.2477]
[1756989614285,4.029,4398.0,4397.9,0.7574]
[1756989614286,4.1426,4398.0,4397.9,0.7574]
[1756989614658,4.1426,4398.0,4397.9,1.2477]
[1756989615059,0.1136,4398.3,4397.9,1.2477]
[1756989615259,4.029,4398.2,4398.0,3.22201554]
[1756989615603,4.029,4398.2,4397.4,0.458]
[1756989615890,0.1136,4397.9,4397.7,2.27391147]
[1756989616073,4.029,4397.8,4397.4,2.27407104]
[1756989616262,4.028,4397.8,4397.7,0.2994]
[1756989616457,0.1136,4398.2,4397.7,0.2994]
[1756989616656,0.1136,4398.4,4397.8,0.9483]
[1756989616862,0.001,4398.7,4398.6,2.27345064]
[1756989617396,0.001,4398.7,4398.6,3.63475064]
[1756989617595,0.001,4398.7,4398.6,4.22558111]
[1756989617766,0.001,4398.7,4398.6,5.04031561]
[1756989618091,0.0002,4398.7,4398.6,5.01758111]
[1756989618994,0.0002,4398.7,4398.6,8.01758111]
[1756989619986,0.0002,4398.7,4398.6,7.22558111]
[1756989620175,0.0002,4398.7,4398.6,6.63475064]
[1756989620496,0.3028,4398.7,4397.6,0.9483]
[1756989620696,2.3518,4398.7,4398.2,2.2736457]
[1756989620999,2.3518,4398.7,4397.9,0.458]
[1756989621167,2.3518,4398.7,4397.9,2.73180043]
[1756989621502,2.3518,4398.7,4398.3,2.27355406]
[1756989621699,2.3518,4398.7,4398.4,2.27355387]
[1756989621883,0.1138,4398.7,4397.9,0.458]
[1756989622064,0.1138,4398.7,4398.6,2.57285064]
[1756989622264,0.1138,4398.7,4398.6,3.52115064]
[1756989622265,0.0002,4398.7,4398.6,3.52115064]
[1756989622502,0.0002,4398.7,4398.6,0.2994]
[1756989622868,0.0002,4398.7,4398.6,2.57285064]
[1756989623498,0.0002,4398.7,4398.6,0.2994]
[1756989623701,0.0002,4398.7,4398.6,3.52115064]
[1756989624000,0.0002,4398.7,4398.6,4.90398027]
[1756989624505,0.0002,4398.7,4398.6,5.01758027]
[1756989626685,0.0002,4398.7,4398.6,3.14445064]
[1756989626885,0.0002,4398.7,4398.2,4.025]
[1756989627199,0.0002,4398.7,4398.6,2.27345064]
[1756989627805,0.0002,4398.7,4398.6,2.57285064]
[1756989627988,0.0002,4398.7,4398.6,0.2994]
[1756989628191,0.0002,4398.7,4398.6,2.57285064]
[1756989628902,0.0002,4398.7,4398.3,0.5716]
[1756989629106,0.3026,4398.5,4397.5,2.6233]
[1756989629304,0.3026,4398.5,4398.1,0.1136]
[1756989629520,0.3026,4398.5,4397.9,0.1136]
[1756989629676,0.3026,4398.5,4398.1,2.27365813]
[1756989630099,0.1138,4398.7,4398.5,2.27349514]
[1756989630303,0.1138,4398.7,4398.4,2.27354075]
[1756989630578,0.1138,4398.7,4398.3,2.27359841]
[1756989630797,0.1138,4398.7,4398.4,2.27354923]
[1756989630984,0.1138,4398.7,4398.5,2.27349535]
[1756989631187,0.1138,4398.7,4397.9,0.1136]
[1756989631797,0.1138,4398.7,4398.0,2.27373796]
[1756989631998,0.67604039,4398.7,4397.9,2.38740087]
[1756989632305,0.67604039,4398.7,4398.1,2.27366806]
[1756989633009,0.67604039,4398.7,4397.3,0.004]
[1756989633010,0.2988,4398.2,4397.3,0.004]
[1756989633176,2.2739005,4397.8,4397.3,0.004]
[1756989633513,0.1136,4397.4,4397.3,0.004]
[1756989633712,0.4124,4397.4,4397.3,0.004]
[1756989634072,7.67047104,4397.4,4397.3,0.004]
[1756989634386,10.67047104,4397.4,4397.3,0.004]
[1756989642617,6.64747104,4397.4,4397.3,0.004]
[1756989642805,11.1343359,4397.4,4397.3,0.004]
[1756989643121,12.0953359,4397.4,4397.3,0.004]
[1756989643645,12.0945359,4397.4,4397.3,0.004]
[1756989647219,4.83646486,4397.4,4397.3,0.004]
[1756989647415,4.83646486,4397.4,4397.3,1.2462]
[1756989647416,4.1356,4397.4,4397.3,1.2462]
[1756989647593,4.1356,4397.4,4397.3,0.7696]
[1756989647800,4.1356,4397.4,4397.3,0.3115]
[1756989649022,7.8821,4397.4,4397.3,0.004]
[1756989649193,11.08303104,4397.4,4397.3,0.004]
[1756989649593,10.63433104,4397.4,4397.3,0.004]
[1756989649943,2.27427791,4397.0,4396.9,0.004]
[1756989650142,16.20927791,4397.0,4396.9,0.004]
[1756989650349,19.61742612,4397.0,4396.9,0.004]
[1756989650753,19.70862175,4397.0,4396.9,0.004]
[1756989652946,6.06632964,4396.9,4396.8,0.029]
[1756989653414,7.32612964,4396.9,4396.8,0.029]
[1756989653817,7.32612964,4396.9,4395.0,0.4581]
[1756989653818,2.27450655,4396.6,4395.0,0.4581]
[1756989654016,2.27450655,4396.6,4394.8,0.4766]
[1756989654017,16.37175114,4395.9,4394.8,0.4766]
[1756989654255,22.36655114,4395.9,4394.8,0.4766]
[1756989654456,23.44073866,4395.9,4394.8,0.4766]
[1756989655214,24.23273866,4395.9,4395.8,1e-08]
[1756989655415,2.27557173,4394.5,4394.4,0.003]
[1756989655724,7.97157173,4394.5,4394.4,0.003]
[1756989655919,12.23137173,4394.5,4394.4,0.003]
[1756989656321,12.3226125,4394.5,4394.4,0.003]
[1756989656526,11.0628125,4394.5,4394.4,0.003]
[1756989657015,10.97157173,4394.5,4394.4,0.003]
[1756989657216,9.10956,4394.5,4394.4,0.003]
[1756989657522,4.676,4394.5,4394.4,0.7686]
[1756989657732,8.696,4394.5,4394.4,1.2452]
[1756989658032,1.676,4394.5,4394.4,1.2452]
[1756989658245,14.66930413,4394.5,4392.8,0.025]
[1756989658416,14.36064267,4394.4,4392.8,0.4831]
[1756989658643,0.85222202,4394.5,4392.9,0.4766]
[1756989658840,3.0,4394.3,4393.0,0.4581]
[1756989659150,0.68462202,4394.5,4394.2,0.3075]
[1756989659462,6.39425406,4395.2,4394.3,0.9347]
[1756989659463,4.119,4394.4,4394.3,0.9347]
[1756989659749,4.148,4394.4,4394.3,1.2422]
[1756989660426,4.148,4394.4,4394.3,1.2462]
[1756989660625,0.1136,4394.6,4394.3,1.2462]
[1756989660826,0.1136,4394.8,4394.4,0.9378]
[1756989661025,0.1136,4394.8,4394.3,0.3115]
[1756989661026,0.1136,4394.8,4394.7,0.2964]
[1756989661227,4.145,4395.1,4394.7,0.2964]
[1756989661448,0.1136,4394.8,4394.7,0.2964]
[1756989661750,4.2596,4394.8,4394.7,0.2964]
[1756989662048,4.146,4394.8,4394.7,3.50966817]
[1756989662247,0.1136,4395.0,4394.7,1.2342]
[1756989662414,0.1136,4395.0,4394.8,0.9378]
[1756989662819,0.1136,4395.0,4394.9,0.2964]
[1756989663017,0.1136,4395.0,4394.9,0.7657]
[1756989663217,0.1136,4395.0,4394.9,3.50956462]
[1756989663550,0.1136,4395.2,4394.9,3.50955905]
[1756989663752,0.1136,4395.2,4395.0,0.9378]
[1756989663950,0.1136,4395.2,4395.1,2.27526108]
[1756989664153,0.025,4395.8,4395.4,2.27507274]
[1756989664358,0.1136,4395.4,4395.3,2.27515127]
[1756989664543,0.025,4395.8,4395.4,2.27509464]
[1756989664853,0.025,4395.8,4395.5,0.9378]
[1756989664854,0.1136,4395.6,4395.5,0.9378]
[1756989665062,0.1136,4395.6,4395.5,1.2342]
[1756989665447,0.1136,4395.6,4395.5,3.50925403]
[1756989665757,0.025,4395.8,4395.5,1.3478]
[1756989665959,0.025,4395.8,4395.7,2.27495051]
[1756989666335,0.025,4395.8,4395.7,3.50915051]
[1756989667425,0.025,4395.8,4395.7,1.2342]
[1756989667654,0.025,4395.8,4395.7,0.7657]
[1756989667966,0.025,4395.8,4395.7,0.2964]
[1756989668259,0.025,4395.8,4395.7,3.50915051]
[1756989668461,0.025,4395.8,4395.7,1.2342]
[1756989668628,0.025,4395.8,4395.7,3.04065051]
[1756989668962,0.0242,4395.8,4395.7,0.7657]
[1756989669829,0.0242,4395.8,4395.7,0.2964]
[1756989670168,0.0242,4395.8,4395.4,0.1136]
[1756989670367,0.9317,4395.7,4394.3,4.42496313]
[1756989670566,0.9317,4395.7,4394.3,0.4733]
[1756989670567,2.27522216,4395.2,4394.3,0.4733]
[1756989670776,4.133,4395.6,4394.3,0.4733]
[1756989670930,2.27526961,4395.1,4394.3,0.4733]
[1756989671125,2.275314,4395.0,4394.3,0.4733]
[1756989671337,2.27538399,4394.9,4394.3,0.004]
[1756989671558,2.27535335,4395.0,4394.3,0.004]
[1756989672068,2.27521032,4395.2,4394.4,2.27557845]
[1756989672269,2.27531971,4395.0,4394.3,2.74896204]
[1756989672627,0.4504,4395.3,4394.3,0.004]
[1756989672958,2.1264,4395.3,4394.3,0.004]
[1756989673158,0.3135,4394.4,4394.3,0.004]
[1756989673370,2.58912352,4394.4,4394.3,0.004]
[1756989673525,0.3135,4394.4,4394.3,0.004]
[1756989673724,4.127,4394.6,4394.3,0.3004]
[1756989673930,6.40229962,4395.1,4394.3,3.51383525]
[1756989674235,2.27536766,4394.9,4394.3,0.3004]
[1756989674433,2.27532138,4395.0,4394.3,0.004]
[1756989674963,4.127,4395.1,4394.3,0.004]
[1756989675165,0.0242,4395.8,4394.9,0.2964]
[1756989675663,0.3135,4395.0,4394.3,0.004]
[1756989675839,2.27555396,4394.6,4394.3,0.004]
[1756989676174,0.3135,4395.0,4394.3,0.004]
[1756989676363,0.3135,4394.4,4394.3,0.004]
[1756989676663,2.58912352,4394.4,4394.3,0.004]
[1756989676848,3.52082352,4394.4,4394.3,0.004]
[1756989677829,1.2452,4394.4,4394.3,0.004]
[1756989678042,5.799,4394.5,4394.3,0.004]
[1756989678263,8.07458805,4394.5,4394.3,0.004]
[1756989678433,2.27562352,4394.4,4394.3,0.004]
[1756989678829,6.52082352,4394.4,4394.3,0.004]
[1756989679236,6.07042352,4394.4,4394.3,0.004]
[1756989679634,5.58912352,4394.4,4394.3,0.004]
[1756989680249,5.70272352,4394.4,4394.3,0.004]
[1756989680643,5.38922352,4394.4,4394.3,0.004]
[1756989681250,5.70272352,4394.4,4394.3,0.004]
[1756989681651,6.63442352,4394.4,4394.3,0.004]
[1756989682360,6.18402352,4394.4,4394.3,0.004]
[1756989682566,6.63442352,4394.4,4394.3,0.004]
[1756989683346,6.18402352,4394.4,4394.3,0.004]
[1756989683748,5.70272352,4394.4,4394.3,0.004]
[1756989684775,6.63442352,4394.4,4394.3,0.004]
[1756989684972,6.18402352,4394.4,4394.3,0.004]
[1756989685147,6.63442352,4394.4,4394.3,0.004]
[1756989687258,2.27583067,4394.0,4393.9,0.004]
[1756989687480,9.50043067,4394.0,4393.9,0.004]
[1756989687682,10.74563067,4394.0,4393.9,0.004]
[1756989688212,3.1136,4394.0,4393.9,0.004]
[1756989688395,9.49943067,4394.0,4393.9,0.004]
[1756989688911,7.2236,4394.0,4393.9,0.004]
[1756989689082,9.81293067,4394.0,4393.9,0.004]
[1756989689483,4.2236,4394.0,4393.9,0.3004]
[1756989689685,4.2236,4394.0,4393.9,1.2382]
[1756989689913,0.1136,4394.0,4393.9,3.51408247]
[1756989690115,0.1136,4394.0,4393.9,0.3004]
[1756989690116,4.2206,4394.0,4393.9,0.3004]
[1756989690820,4.107,4394.0,4393.9,1.2202]
[1756989691303,4.118,4394.4,4393.9,1.2202]
[1756989691603,4.118,4394.4,4394.2,2.27567828]
[1756989691809,1.677,4395.2,4394.6,2.27550415]
[1756989692011,1.677,4395.2,4394.3,1.2239]
[1756989692012,0.1136,4394.8,4394.5,2.27556274]
[1756989692314,0.1136,4394.8,4394.3,2.2756753]
[1756989692494,0.001,4395.1,4394.3,2.2756753]
[1756989692495,0.001,4395.1,4395.0,2.27531285]
[1756989692807,0.001,4395.1,4394.7,2.57956175]
[1756989692982,0.001,4395.1,4395.0,2.57941285]
[1756989693525,0.001,4395.1,4395.0,3.49921285]
[1756989693811,4.134,4395.1,4394.4,0.4442]
[1756989694308,4.1332,4395.1,4394.6,2.27551243]
[1756989694480,4.1332,4395.1,4395.0,0.3041]
[1756989694675,4.1332,4395.1,4395.0,0.7483]
[1756989695014,4.1332,4395.1,4395.0,3.49921285]
[1756989695015,0.0002,4395.1,4395.0,3.49921285]
[1756989695200,0.0002,4395.1,4395.0,1.2239]
[1756989695372,0.0002,4395.1,4395.0,0.7483]
[1756989696025,0.0002,4395.1,4395.0,0.3041]
[1756989696178,0.3139,4395.1,4394.0,0.4442]
[1756989696513,0.0002,4395.1,4394.0,0.4442]
[1756989696685,2.27531285,4395.0,4394.1,2.27577462]
[1756989697010,2.27547276,4395.1,4394.3,2.27566936]
[1756989697310,2.27538701,4394.9,4394.0,0.4442]
[1756989697514,0.0002,4395.1,4394.3,2.2756359]
[1756989697807,2.27541752,4394.8,4394.0,2.72001358]
[1756989697974,2.27541752,4394.8,4394.1,2.27577659]
[1756989698376,4.137,4394.7,4393.9,0.004]
[1756989698809,6.41247027,4394.7,4393.9,0.004]